bitfinex-derivatives/quotes_BTCF0:USTF0_20250320
["timestamp","ask_amount","ask_price","bid_price","bid_amount"]
[1742496953821,0.6565,84179.0,84146.0,0.3608]
[1742496954114,0.4797001,84153.0,84152.0,0.0473]
[1742496954317,0.5961801,84153.0,84152.0,0.0473]
[1742496954620,0.6929801,84153.0,84152.0,0.0473]
[1742496955122,0.6929801,84153.0,84152.0,0.1662015]
[1742496956015,0.6929801,84153.0,84152.0,0.2159015]
[1742496956522,0.6929801,84153.0,84152.0,0.2249015]
[1742496958919,0.5765001,84153.0,84152.0,0.2249015]
[1742496959109,0.0594465,84159.0,84158.0,0.1783359]
[1742496959422,0.11906703,84161.0,84160.0,0.1188902]
[1742496959805,0.11906703,84161.0,84160.0,0.2151902]
[1742496960618,0.11906703,84161.0,84160.0,0.22828479]
[1742496961714,0.14666703,84161.0,84160.0,0.22828479]
[1742496961910,0.24346703,84161.0,84160.0,0.23028479]
[1742496962713,0.31432347,84161.0,84160.0,0.23028479]
[1742496962915,0.21752347,84161.0,84160.0,0.23328479]
[1742496963223,0.11906703,84161.0,84160.0,0.23328479]
[1742496964415,0.21752347,84161.0,84160.0,0.23328479]
[1742496964819,0.17046703,84161.0,84160.0,0.23328479]
[1742496965021,0.22026703,84161.0,84160.0,0.23328479]
[1742496965226,0.24666703,84161.0,84160.0,0.1013]
[1742496965420,0.31752347,84161.0,84160.0,0.005]
[1742496965723,0.31752347,84161.0,84146.0,0.3608]
[1742496965724,0.21736494,84147.0,84146.0,0.3608]
[1742496965923,0.1189085,84147.0,84146.0,0.3608]
[1742496966127,0.1189085,84147.0,84146.0,0.4797099]
[1742496966423,0.2145085,84147.0,84146.0,0.46948929]
[1742496966619,0.2145085,84147.0,84146.0,0.4564]
[1742496966822,0.2145085,84147.0,84146.0,0.4624]
[1742496967123,0.2145085,84147.0,84146.0,0.006]
[1742496967722,0.2145085,84147.0,84146.0,0.012]
[1742496968519,0.2145085,84147.0,84146.0,0.1299099]
[1742496969118,0.2145085,84147.0,84146.0,0.1239099]
[1742496969524,0.2145085,84147.0,84146.0,0.1289099]
[1742496969724,0.2145085,84147.0,84146.0,0.1239099]
[1742496969927,0.2145085,84147.0,84146.0,0.2225099]
[1742496971019,0.2157085,84147.0,84146.0,0.2225099]
[1742496971225,0.31296494,84147.0,84146.0,0.2225099]
[1742496971419,0.2038085,84147.0,84146.0,0.2225099]
[1742496971723,0.1189085,84147.0,84146.0,0.2225099]
[1742496975028,0.21736494,84147.0,84146.0,0.2225099]
[1742496975727,0.1189085,84147.0,84146.0,0.2225099]
[1742496977325,0.21736494,84147.0,84146.0,0.2225099]
[1742496978123,0.1189085,84147.0,84146.0,0.2225099]
[1742496978735,0.21736494,84147.0,84146.0,0.2225099]
[1742496978918,0.1507085,84147.0,84146.0,0.2225099]
[1742496979119,0.30926494,84147.0,84146.0,0.2225099]
[1742496979934,0.2108085,84147.0,84146.0,0.2225099]
[1742496980730,0.0594503,84153.0,84152.0,0.1189015]
[1742496980929,0.0919,84160.0,84159.0,0.1188916]
[1742496981121,0.00017823,84161.0,84160.0,0.1188902]
[1742496981425,0.00017823,84161.0,84160.0,0.1672902]
[1742496981632,0.175952,84179.0,84166.0,0.1188817]
[1742496981819,0.16492,84179.0,84166.0,0.4796817]
[1742496982015,0.118874,84172.0,84166.0,0.5962017]
[1742496982218,0.0594348,84175.0,84166.0,0.5962017]
[1742496982421,0.0484,84178.0,84166.0,0.6446017]
[1742496982622,0.1188753,84171.0,84166.0,0.6446017]
[1742496982928,0.24939758,84167.0,84166.0,0.6446017]
[1742496983126,0.17569758,84167.0,84166.0,0.6446017]
[1742496983325,0.17569758,84167.0,84166.0,1.0646017]
[1742496983831,0.02829758,84167.0,84166.0,1.0646017]
[1742496984433,0.00017823,84175.0,84172.0,0.1188732]
[1742496984627,0.00017823,84175.0,84172.0,0.7196732]
[1742496985032,0.00017823,84175.0,84174.0,0.1188704]
[1742496985223,0.00017823,84175.0,84174.0,0.4753904]
[1742496986435,0.00017823,84175.0,84174.0,0.6303904]
[1742496986925,0.00017823,84175.0,84174.0,0.6771904]
[1742496987731,0.05326234,84183.0,84182.0,0.1188591]
[1742496988033,0.409,84219.0,84202.0,0.1188309]
[1742496988034,0.34341901,84203.0,84202.0,0.1188309]
[1742496988232,0.34341901,84203.0,84202.0,0.4796309]
[1742496988529,0.048,84206.0,84204.0,0.118828]
[1742496988721,0.049,84206.0,84205.0,0.1188266]
[1742496988920,0.0871,84206.0,84205.0,0.1188266]
[1742496989126,0.049,84206.0,84205.0,0.1188266]
[1742496989828,0.0964,84206.0,84205.0,0.1188266]
[1742496990023,0.19385644,84206.0,84205.0,0.1188266]
[1742496990229,0.31268164,84206.0,84205.0,0.13237024]
[1742496990623,0.2154252,84206.0,84205.0,0.13237024]
[1742496990824,0.31268164,84206.0,84205.0,0.13237024]
[1742496991231,0.2182252,84206.0,84205.0,0.13237024]
[1742496991424,0.2212252,84206.0,84205.0,0.13237024]
[1742496992019,0.2182252,84206.0,84205.0,0.13237024]
[1742496992224,0.2212252,84206.0,84205.0,0.13237024]
[1742496993133,0.2212252,84206.0,84205.0,0.1411711]
[1742496993722,0.0544,84206.0,84205.0,0.1411711]
[1742496994136,0.0544,84206.0,84205.0,0.1892711]
[1742496996026,0.1732252,84206.0,84205.0,0.1411711]
[1742496996231,0.1732252,84206.0,84205.0,0.0223445]
[1742496996430,0.39050824,84206.0,84204.0,0.1188276]
[1742496996630,0.1744252,84206.0,84205.0,0.1188266]
[1742496996929,0.27168164,84206.0,84205.0,0.13225499]
[1742496997732,0.2118252,84206.0,84205.0,0.13225499]
[1742496997927,0.2112252,84206.0,84205.0,0.13225499]
[1742496998128,0.2008252,84206.0,84205.0,0.13225499]
[1742496998432,0.2112252,84206.0,84205.0,0.13225499]
[1742496998634,0.27168164,84206.0,84205.0,0.13225499]
[1742496998837,0.1714252,84206.0,84205.0,0.13225499]
[1742496999037,0.1744252,84206.0,84205.0,0.01342839]
[1742496999235,0.1782434,84205.0,84202.0,0.4290705]
[1742496999428,0.1782434,84205.0,84204.0,0.059414]
[1742496999623,0.2273434,84205.0,84204.0,0.059414]
[1742496999828,0.2261434,84205.0,84204.0,0.059414]
[1742497000038,0.1188294,84203.0,84202.0,0.3608]
[1742497000534,0.1667294,84203.0,84202.0,0.4796309]
[1742497000737,0.17641549,84203.0,84202.0,0.4796309]
[1742497001336,0.17641549,84203.0,84202.0,0.49294676]
[1742497001737,0.18041549,84203.0,84202.0,0.49294676]
[1742497001940,0.18341549,84203.0,84202.0,0.49294676]
[1742497002240,0.18342611,84203.0,84202.0,0.49294676]
[1742497003134,0.06459671,84203.0,84202.0,0.49294676]
[1742497003338,0.18342611,84203.0,84202.0,0.49294676]
[1742497003838,0.1737294,84203.0,84202.0,0.49294676]
[1742497004836,0.28188706,84203.0,84202.0,0.49294676]
[1742497005545,0.18343062,84203.0,84202.0,0.49294676]
[1742497006534,0.18463062,84203.0,84202.0,0.49294676]
[1742497006741,0.28188706,84203.0,84202.0,0.37411586]
[1742497006940,0.28188706,84203.0,84202.0,0.49294676]
[1742497007139,0.26673062,84203.0,84202.0,0.49294676]
[1742497007340,0.26713062,84203.0,84202.0,0.49294676]
[1742497007651,0.25633062,84203.0,84202.0,0.49294676]
[1742497008047,0.32718706,84203.0,84202.0,0.49294676]
[1742497009051,0.31363062,84203.0,84202.0,0.49294676]
[1742497009246,0.31383062,84203.0,84202.0,0.49294676]
[1742497009439,0.31363062,84203.0,84202.0,0.49294676]
[1742497011143,0.27563062,84203.0,84202.0,0.3608]
[1742497011846,0.27563062,84203.0,84202.0,0.4796309]
[1742497012250,0.27563062,84203.0,84202.0,0.3608]
[1742497012558,0.1188309,84202.0,84201.0,0.01319965]
[1742497012851,0.1188365,84198.0,84197.0,0.11901483]
[1742497013153,0.2352365,84198.0,84197.0,0.11901483]
[1742497013346,0.3299365,84198.0,84197.0,0.11901483]
[1742497013953,0.3329365,84198.0,84197.0,0.11901483]
[1742497014445,0.3359365,84198.0,84197.0,0.11901483]
[1742497014852,0.3359365,84198.0,84197.0,0.00017823]
[1742497015452,0.3635365,84198.0,84197.0,0.00017823]
[1742497015644,0.38150106,84198.0,84197.0,0.00017823]
[1742497015843,0.0594246,84189.0,84176.0,0.00883526]
[1742497016045,0.1188619,84180.0,84178.0,0.1188642]
[1742497016247,0.1188619,84180.0,84173.0,0.0594356]
[1742497016248,0.33371834,84180.0,84179.0,0.3735599]
[1742497016545,0.3321619,84180.0,84179.0,0.3735599]
[1742497016851,0.42941834,84180.0,84179.0,0.3735599]
[1742497017053,0.3633619,84180.0,84179.0,0.3755599]
[1742497017551,0.42941834,84180.0,84179.0,0.3755599]
[1742497017747,0.42941834,84180.0,84179.0,0.3775599]
[1742497018048,0.3321619,84180.0,84179.0,0.3648]
[1742497018241,0.42941834,84180.0,84179.0,0.3648]
[1742497018649,0.3321619,84180.0,84179.0,0.3648]
[1742497018845,0.42941834,84180.0,84179.0,0.3648]
[1742497019048,0.42941834,84180.0,84179.0,0.3628]
[1742497019347,0.42941834,84180.0,84179.0,0.3648]
[1742497019654,0.3689619,84180.0,84179.0,0.3648]
[1742497020750,0.42941834,84180.0,84179.0,0.3648]
[1742497020947,0.3321619,84180.0,84179.0,0.004]
[1742497021153,0.42941834,84180.0,84179.0,0.004]
[1742497022254,0.42941834,84180.0,84172.0,0.0473]
[1742497022255,0.1188732,84172.0,84169.0,0.3608]
[1742497022555,0.2629132,84172.0,84169.0,0.3608]
[1742497022758,0.4073132,84172.0,84169.0,0.3608]
[1742497023742,0.47816964,84172.0,84171.0,0.00817823]
[1742497024750,0.2632732,84172.0,84171.0,0.12705283]
[1742497024953,0.0974,84172.0,84171.0,0.12705283]
[1742497025156,0.0481,84172.0,84171.0,0.26735283]
[1742497025359,0.1669732,84172.0,84171.0,0.26735283]
[1742497025554,0.1993732,84172.0,84171.0,0.00817823]
[1742497025754,0.2872732,84172.0,84171.0,0.00817823]
[1742497026360,0.35812964,84172.0,84171.0,0.00817823]
[1742497027054,0.6204732,84172.0,84171.0,0.00817823]
[1742497027560,0.118893,84158.0,84150.0,0.3608]
[1742497027758,0.235333,84158.0,84153.0,0.1188994]
[1742497027962,0.379933,84158.0,84153.0,0.1188994]
[1742497028151,0.379933,84158.0,84155.0,0.2377937]
[1742497028351,0.379933,84158.0,84155.0,0.1188967]
[1742497028663,0.379933,84158.0,84157.0,0.4796944]
[1742497029252,0.379933,84158.0,84157.0,0.3608]
[1742497029651,0.379933,84158.0,84157.0,0.4796944]
[1742497030456,0.379933,84158.0,84157.0,0.5288944]
[1742497030652,0.381933,84158.0,84157.0,0.5288944]
[1742497031058,0.383933,84158.0,84157.0,0.5268944]
[1742497031253,0.383933,84158.0,84157.0,0.5708944]
[1742497031857,0.383933,84158.0,84157.0,0.5268944]
[1742497032057,0.48238944,84158.0,84157.0,0.5268944]
[1742497032258,0.48138944,84158.0,84157.0,0.5268944]
[1742497032455,0.420833,84158.0,84157.0,0.5268944]
[1742497032659,0.48138944,84158.0,84157.0,0.5268944]
[1742497032862,0.218793,84158.0,84157.0,0.5268944]
[1742497033167,0.16654,84158.0,84157.0,0.5714944]
[1742497033365,0.287433,84158.0,84157.0,0.5714944]
[1742497033551,0.38588944,84158.0,84157.0,0.5714944]
[1742497033757,0.43048944,84158.0,84157.0,0.5714944]
[1742497033957,0.43148944,84158.0,84157.0,0.5714944]
[1742497034159,0.365433,84158.0,84157.0,0.5714944]
[1742497034459,0.47938944,84158.0,84157.0,0.5734944]
[1742497034660,0.418033,84158.0,84157.0,0.5734944]
[1742497035163,0.47838944,84158.0,84157.0,0.5714944]
[1742497036267,0.47738944,84158.0,84157.0,0.5714944]
[1742497037466,0.417033,84158.0,84157.0,0.5268944]
[1742497038272,0.368133,84158.0,84157.0,0.5268944]
[1742497038471,0.42848944,84158.0,84157.0,0.5709944]
[1742497038765,0.369133,84158.0,84157.0,0.5709944]
[1742497038963,0.42948944,84158.0,84157.0,0.5709944]
[1742497039157,0.370133,84158.0,84157.0,0.5709944]
[1742497039472,0.43048944,84158.0,84157.0,0.5709944]
[1742497039856,0.42948944,84158.0,84157.0,0.5709944]
[1742497040167,0.369133,84158.0,84157.0,0.5709944]
[1742497040363,0.42848944,84158.0,84157.0,0.5709944]
[1742497040570,0.42848944,84158.0,84157.0,0.5719944]
[1742497040767,0.42848944,84158.0,84157.0,0.409]
[1742497040963,0.42848944,84158.0,84157.0,0.408]
[1742497040964,0.362433,84158.0,84157.0,0.408]
[1742497041272,0.42848944,84158.0,84157.0,0.5268944]
[1742497042270,0.42848944,84158.0,84157.0,0.5747944]
[1742497043264,0.42848944,84158.0,84157.0,0.5268944]
[1742497043566,0.42848944,84158.0,84157.0,0.3608]
[1742497044476,0.330033,84158.0,84157.0,0.5265944]
[1742497044669,0.42848944,84158.0,84157.0,0.5265944]
[1742497045164,0.42948944,84158.0,84157.0,0.5265944]
[1742497045574,0.369133,84158.0,84157.0,0.5265944]
[1742497046073,0.42948944,84158.0,84157.0,0.5265944]
[1742497046268,0.43148944,84158.0,84157.0,0.5265944]
[1742497046573,0.43148944,84158.0,84157.0,0.1657944]
[1742497048071,0.370033,84158.0,84157.0,0.1657944]
[1742497048275,0.43148944,84158.0,84157.0,0.1657944]
[1742497048869,0.371033,84158.0,84157.0,0.1657944]
[1742497049070,0.370033,84158.0,84157.0,0.1657944]
[1742497049268,0.43148944,84158.0,84157.0,0.1657944]
[1742497049475,0.371033,84158.0,84157.0,0.1657944]
[1742497049673,0.43048944,84158.0,84157.0,0.1657944]
[1742497049873,0.43148944,84158.0,84157.0,0.1657944]
[1742497050477,0.43048944,84158.0,84157.0,0.1657944]
[1742497051278,0.370133,84158.0,84157.0,0.1657944]
[1742497051473,0.215593,84158.0,84157.0,0.1657944]
[1742497051674,0.002,84158.0,84157.0,0.5172944]
[1742497052080,0.120893,84158.0,84157.0,0.5172944]
[1742497052381,0.119893,84158.0,84157.0,0.5172944]
[1742497052775,0.118893,84158.0,84157.0,0.5172944]
[1742497053472,0.046,84159.0,84158.0,0.118893]
[1742497053776,0.046,84159.0,84158.0,0.209993]
[1742497053977,0.1648916,84159.0,84158.0,0.209993]
[1742497054277,0.2577916,84159.0,84158.0,0.163693]
[1742497054479,0.35624804,84159.0,84158.0,0.163693]
[1742497054875,0.1188972,84155.0,84154.0,0.3608]
[1742497055075,0.21735364,84155.0,84154.0,0.3608]
[1742497055286,0.1189043,84150.0,84145.0,0.3608]
[1742497055576,0.2734443,84150.0,84149.0,0.01312058]
[1742497055773,0.3272443,84150.0,84149.0,0.00017823]
[1742497056874,0.3272443,84150.0,84149.0,0.13243328]
[1742497059979,0.3272443,84150.0,84149.0,0.17863328]
[1742497060984,0.3653443,84150.0,84149.0,0.17863328]
[1742497061190,0.3652443,84150.0,84149.0,0.17863328]
[1742497061986,0.42570074,84150.0,84149.0,0.17863328]
[1742497062286,0.3652443,84150.0,84149.0,0.17863328]
[1742497062489,0.3658443,84150.0,84149.0,0.17863328]
[1742497062680,0.3652443,84150.0,84149.0,0.17863328]
[1742497063386,0.42570074,84150.0,84149.0,0.17863328]
[1742497063587,0.42570074,84150.0,84149.0,0.05972758]
[1742497063789,0.3652443,84150.0,84149.0,0.17863328]
[1742497063989,0.3658443,84150.0,84149.0,0.17863328]
[1742497064581,0.3652443,84150.0,84149.0,0.17863328]
[1742497064893,0.42570074,84150.0,84149.0,0.17863328]
[1742497065089,0.3658443,84150.0,84149.0,0.17863328]
[1742497065385,0.42570074,84150.0,84149.0,0.17863328]
[1742497065590,0.42570074,84150.0,84149.0,0.13243328]
[1742497065785,0.1189001,84153.0,84149.0,0.70377988]
[1742497065786,0.0594505,84153.0,84149.0,0.70377988]
[1742497065985,0.0459,84150.0,84149.0,0.82268558]
[1742497066190,0.1648043,84150.0,84149.0,0.55268558]
[1742497066392,0.2099043,84150.0,84149.0,0.55268558]
[1742497066587,0.091,84150.0,84149.0,0.55268558]
[1742497066890,0.0459,84150.0,84149.0,0.55268558]
[1742497067384,0.1648043,84150.0,84149.0,0.55268558]
[1742497067591,0.2099043,84150.0,84149.0,0.55268558]
[1742497067893,0.1648043,84150.0,84149.0,0.55268558]
[1742497068487,0.1648043,84150.0,84149.0,0.55368558]
[1742497068889,0.0459,84150.0,84149.0,0.55368558]
[1742497069293,0.0449,84155.0,84154.0,0.1188986]
[1742497069592,0.1637972,84155.0,84154.0,0.1630986]
[1742497070690,0.2091972,84155.0,84154.0,0.1630986]
[1742497071802,0.2091972,84155.0,84154.0,0.1188986]
[1742497072897,0.2367972,84155.0,84154.0,0.1188986]
[1742497073294,0.30765364,84155.0,84154.0,0.1188986]
[1742497073493,0.2367972,84155.0,84154.0,0.1188986]
[1742497073693,0.2091972,84155.0,84154.0,0.1188986]
[1742497074608,0.0903,84155.0,84154.0,0.1188986]
[1742497075104,0.2091972,84155.0,84154.0,0.1188986]
[1742497077304,0.2091972,84155.0,84154.0,0.1636986]
[1742497080108,0.0903,84155.0,84154.0,0.1636986]
[1742497080300,0.2091972,84155.0,84154.0,0.1636986]
[1742497081207,0.2103972,84155.0,84154.0,0.1636986]
[1742497081408,0.2091972,84155.0,84154.0,0.1636986]
[1742497084799,0.2091972,84155.0,84154.0,0.2065986]
[1742497086005,0.0903,84155.0,84154.0,0.2065986]
[1742497086700,0.2091972,84155.0,84154.0,0.2065986]
[1742497088206,0.0903,84155.0,84154.0,0.2065986]
[1742497088911,0.0903,84155.0,84154.0,0.4865986]
[1742497088912,0.0454,84155.0,84154.0,0.4865986]
[1742497089707,0.11906053,84166.0,84165.0,0.1188831]
[1742497089914,0.11906053,84166.0,84165.0,0.7596831]
[1742497090210,0.11906053,84166.0,84165.0,0.8495831]
[1742497090605,0.11906053,84166.0,84165.0,0.8030831]
[1742497090908,0.16526053,84166.0,84165.0,0.8030831]
[1742497091111,0.21416053,84166.0,84165.0,0.8030831]
[1742497091313,0.21816053,84166.0,84165.0,0.8030831]
[1742497092212,0.31661697,84166.0,84165.0,0.7596831]
[1742497092412,0.31661697,84166.0,84165.0,0.4796831]
[1742497093104,0.25676053,84166.0,84165.0,0.4796831]
[1742497093315,0.31661697,84166.0,84165.0,0.4796831]
[1742497093708,0.25056053,84166.0,84165.0,0.3608]
[1742497094005,0.30520143,84166.0,84165.0,0.1188831]
[1742497094605,0.37605787,84166.0,84165.0,0.1188831]
[1742497094810,0.31000143,84166.0,84165.0,0.1188831]
[1742497095204,0.1783282,84164.0,84163.0,0.1188846]
[1742497095518,0.1188859,84163.0,84162.0,0.3608]
[1742497095703,0.2091859,84163.0,84162.0,0.3608]
[1742497095905,0.2415859,84163.0,84162.0,0.3608]
[1742497096315,0.2103859,84163.0,84162.0,0.3608]
[1742497096613,0.30764234,84163.0,84162.0,0.1188873]
[1742497096814,0.0594458,84159.0,84142.0,0.0594577]
[1742497097117,0.21735504,84154.0,84150.0,0.1189043]
[1742497097313,0.21735934,84151.0,84150.0,0.1189043]
[1742497097512,0.1513043,84150.0,84149.0,0.00017823]
[1742497097720,0.30906074,84150.0,84149.0,0.00017823]
[1742497097911,0.30906074,84150.0,84142.0,0.3608]
[1742497097912,0.1189057,84149.0,84142.0,0.3608]
[1742497098115,0.1189142,84143.0,84142.0,0.3608]
[1742497098313,0.1189198,84139.0,84135.0,0.28383531]
[1742497098516,0.1189241,84136.0,84135.0,0.28383531]
[1742497100017,0.1189269,84134.0,84133.0,0.3608]
[1742497100705,0.1189354,84128.0,84120.0,0.3608]
[1742497100903,0.1689467,84120.0,84119.0,0.28383531]
[1742497101110,0.2853467,84120.0,84119.0,0.28383531]
[1742497101314,0.2353467,84120.0,84119.0,0.28383531]
[1742497101722,0.2853467,84120.0,84119.0,0.28383531]
[1742497102110,0.3443412,84120.0,84119.0,0.28383531]
[1742497102915,0.3453412,84120.0,84119.0,0.28383531]
[1742497103223,0.44379764,84120.0,84119.0,0.28483531]
[1742497103716,0.44379764,84120.0,84111.0,0.11907808]
[1742497103717,0.118958,84112.0,84111.0,0.00011888]
[1742497103911,0.33385444,84112.0,84111.0,0.11907828]
[1742497104112,0.33385444,84112.0,84111.0,0.00011888]
[1742497104517,0.42235444,84112.0,84111.0,0.00011888]
[1742497105114,0.42235444,84112.0,84111.0,0.12007828]
[1742497105409,0.351498,84112.0,84111.0,0.00211888]
[1742497105605,0.42235444,84112.0,84111.0,0.00211888]
[1742497106235,0.50339644,84112.0,84083.0,0.00068]
[1742497106407,0.1190005,84082.0,84081.0,0.0457]
[1742497106730,0.2354405,84082.0,84081.0,0.1052007]
[1742497107023,0.2354405,84082.0,84081.0,0.2242026]
[1742497107211,0.2735405,84082.0,84081.0,0.0457]
[1742497107522,0.3608,84085.0,84084.0,0.1189976]
[1742497107714,0.3608,84085.0,84083.0,0.003]
[1742497107715,0.82005644,84085.0,84083.0,0.003]
[1742497108021,0.1616976,84084.0,84083.0,0.003]
[1742497108323,0.1508146,84072.0,84071.0,0.0457]
[1742497108621,0.2366546,84072.0,84071.0,0.0457]
[1742497108816,0.1190273,84063.0,84059.0,0.119032]
[1742497109121,0.1190273,84063.0,84061.0,0.1190291]
[1742497109122,0.1507273,84063.0,84061.0,0.1190291]
[1742497109314,0.1514273,84063.0,84061.0,0.1190298]
[1742497109512,0.21748374,84063.0,84062.0,0.29644189]
[1742497109712,0.21748374,84063.0,84062.0,0.41547069]
[1742497110217,0.21748374,84063.0,84062.0,0.46007069]
[1742497110522,0.21848374,84063.0,84062.0,0.46507069]
[1742497111617,0.21848374,84063.0,84062.0,0.18123538]
[1742497112213,0.1530273,84063.0,84062.0,0.18123538]
[1742497112417,0.21848374,84063.0,84062.0,0.18123538]
[1742497112616,0.21948374,84063.0,84062.0,0.18323538]
[1742497113125,0.1222273,84063.0,84062.0,0.18323538]
[1742497113315,0.21948374,84063.0,84062.0,0.18323538]
[1742497113916,0.1534273,84063.0,84062.0,0.18323538]
[1742497114227,0.1222273,84063.0,84062.0,0.18323538]
[1742497114529,0.1550273,84063.0,84062.0,0.18323538]
[1742497114825,0.21948374,84063.0,84062.0,0.18323538]
[1742497115223,0.1210273,84063.0,84062.0,0.45323538]
[1742497115520,0.002,84063.0,84062.0,0.45323538]
[1742497115722,0.1210273,84063.0,84062.0,0.45323538]
[1742497116325,0.2375073,84063.0,84062.0,0.0516]
[1742497116627,0.5983073,84063.0,84062.0,0.0516]
[1742497117018,0.6865073,84063.0,84062.0,0.0516]
[1742497118521,0.7365073,84063.0,84062.0,0.0516]
[1742497118721,0.7355073,84063.0,84062.0,0.0506]
[1742497119230,0.6845073,84063.0,84062.0,0.0456]
[1742497119527,0.7345073,84063.0,84062.0,0.0466]
[1742497120130,0.7726073,84063.0,84062.0,0.0466]
[1742497121129,0.7732073,84063.0,84062.0,0.0466]
[1742497121330,0.83296374,84063.0,84062.0,0.0466]
[1742497121725,0.7726073,84063.0,84062.0,0.0466]
[1742497122328,0.7279073,84063.0,84062.0,0.0466]
[1742497122631,0.6844473,84063.0,84062.0,0.1656288]
[1742497122821,0.6287473,84063.0,84062.0,0.0466]
[1742497123020,0.1190273,84063.0,84062.0,0.2846534]
[1742497123228,0.1190273,84063.0,84062.0,0.3312534]
[1742497123632,0.0595128,84065.0,84064.0,0.1190259]
[1742497123835,0.0976128,84065.0,84064.0,0.1190259]
[1742497124034,0.0595128,84065.0,84064.0,0.2100259]
[1742497124935,0.0595128,84065.0,84064.0,0.2110259]
[1742497125327,0.0595128,84065.0,84064.0,0.2120259]
[1742497125629,0.1190229,84067.0,84066.0,0.1785332]
[1742497125832,0.0595105,84068.0,84066.0,0.1785332]
[1742497125833,0.11652,84069.0,84068.0,0.1190203]
[1742497126037,0.00017833,84071.0,84070.0,0.1190174]
[1742497126333,0.14645399,84080.0,84070.0,0.1190174]
[1742497126334,0.2266113,84077.0,84076.0,0.1785098]
[1742497126534,0.0481,84077.0,84076.0,0.1785098]
[1742497127237,0.21746394,84077.0,84076.0,0.1785098]
[1742497127934,0.1670075,84077.0,84076.0,0.1785098]
[1742497128135,0.21746394,84077.0,84076.0,0.1785098]
[1742497128833,0.21946394,84077.0,84076.0,0.1785098]
[1742497129334,0.21846394,84077.0,84076.0,0.1785098]
[1742497130039,0.1212075,84077.0,84076.0,0.19146681]
[1742497130229,0.21846394,84077.0,84076.0,0.07246071]
[1742497130429,0.26636394,84077.0,84076.0,0.07246071]
[1742497131441,0.1691075,84077.0,84076.0,0.07246071]
[1742497131741,0.1679075,84077.0,84076.0,0.07246071]
[1742497132142,0.26636394,84077.0,84076.0,0.07246071]
[1742497132441,0.1212075,84077.0,84076.0,0.07246071]
[1742497132639,0.21846394,84077.0,84076.0,0.07246071]
[1742497132838,0.26636394,84077.0,84076.0,0.07246071]
[1742497134034,0.21846394,84077.0,84076.0,0.07246071]
[1742497134938,0.26606394,84077.0,84076.0,0.07246071]
[1742497135433,0.26606394,84077.0,84076.0,0.01295701]
[1742497135638,0.31146394,84077.0,84076.0,0.1190089]
[1742497136034,0.2142075,84077.0,84076.0,0.1190089]
[1742497136233,0.31146394,84077.0,84076.0,0.1190089]
[1742497137036,0.2142075,84077.0,84076.0,0.1190089]
[1742497137554,0.1190189,84069.0,84068.0,0.11919723]
[1742497137741,0.21747534,84069.0,84068.0,0.11919723]
[1742497138230,0.21747534,84069.0,84068.0,0.12934817]
[1742497138642,0.1190104,84075.0,84074.0,0.1785162]
[1742497138840,0.14295644,84075.0,84074.0,0.1785162]
[1742497139441,0.04784233,84075.0,84074.0,0.2261162]
[1742497139635,0.00974233,84075.0,84074.0,0.2261162]
[1742497139836,0.16292,84087.0,84084.0,0.1189976]
[1742497140048,0.00247833,84085.0,84084.0,0.2128976]
[1742497140344,0.04057833,84085.0,84084.0,0.2128976]
[1742497141648,0.04047833,84085.0,84084.0,0.2128976]
[1742497141842,0.04247833,84085.0,84084.0,0.2128976]
[1742497142047,0.04307833,84085.0,84084.0,0.2128976]
[1742497142343,0.21963097,84085.0,84084.0,0.2128976]
[1742497142549,0.0594996,84083.0,84080.0,0.0468]
[1742497142752,0.1190019,84081.0,84080.0,0.1658019]
[1742497143042,0.1202019,84081.0,84080.0,0.1658019]
[1742497143231,0.30975834,84081.0,84080.0,0.1658019]
[1742497143436,0.1247,84081.0,84071.0,0.0442]
[1742497143644,0.1247,84081.0,84070.0,0.28383531]
[1742497143645,0.119016,84071.0,84070.0,0.28383531]
[1742497143838,0.33399244,84071.0,84070.0,0.28383531]
[1742497144144,0.1190217,84067.0,84066.0,0.35242447]
[1742497144537,0.2054217,84067.0,84066.0,0.35242447]
[1742497144738,0.5287217,84067.0,84066.0,0.35242447]
[1742497144950,0.67597814,84067.0,84066.0,0.35242447]
[1742497145144,0.6156217,84067.0,84066.0,0.35242447]
[1742497146038,0.6162217,84067.0,84066.0,0.35242447]
[1742497146234,0.1190273,84063.0,84062.0,0.0468]
[1742497146447,0.2679473,84063.0,84062.0,0.0468]
[1742497146650,0.38070374,84063.0,84062.0,0.0468]
[1742497147246,0.3636473,84063.0,84062.0,0.0468]
[1742497147443,0.3386473,84063.0,84062.0,0.0468]
[1742497147642,0.3642473,84063.0,84062.0,0.0478]
[1742497147949,0.3636473,84063.0,84062.0,0.0488]
[1742497148137,0.3579473,84063.0,84062.0,0.0488]
[1742497148336,0.42400374,84063.0,84062.0,0.0488]
[1742497148737,0.3586473,84063.0,84062.0,0.0488]
[1742497148939,0.3153473,84063.0,84062.0,0.1439]
[1742497149244,0.26418374,84063.0,84062.0,0.2629288]
[1742497149551,0.2736473,84063.0,84062.0,0.2629288]
[1742497150050,0.2742473,84063.0,84062.0,0.2629288]
[1742497150649,0.3196473,84063.0,84062.0,0.2629288]
[1742497150852,0.3202473,84063.0,84062.0,0.2629288]
[1742497151442,0.3196473,84063.0,84062.0,0.2629288]
[1742497151952,0.3628473,84063.0,84062.0,0.2629288]
[1742497152154,0.30668374,84063.0,84062.0,0.2629288]
[1742497152338,0.3628473,84063.0,84062.0,0.2629288]
[1742497152754,0.3196473,84063.0,84062.0,0.2629288]
[1742497153142,0.3202473,84063.0,84062.0,0.2629288]
[1742497153545,0.26348374,84063.0,84062.0,0.2629288]
[1742497153749,0.1190273,84063.0,84062.0,0.2629288]
[1742497154354,0.21748374,84063.0,84062.0,0.2629288]
[1742497154556,0.1508273,84063.0,84062.0,0.2629288]
[1742497154755,0.21748374,84063.0,84062.0,0.2629288]
[1742497155051,0.1202273,84063.0,84062.0,0.1439]
[1742497155258,0.26318374,84063.0,84062.0,0.1439]
[1742497155450,0.26318374,84063.0,84062.0,0.2629288]
[1742497155851,0.2034273,84063.0,84062.0,0.2629288]
[1742497156357,0.2028273,84063.0,84062.0,0.2629288]
[1742497156556,0.2034273,84063.0,84062.0,0.2629288]
[1742497156751,0.2028273,84063.0,84062.0,0.2629288]
[1742497157342,0.1577273,84063.0,84062.0,0.2629288]
[1742497157948,0.1571273,84063.0,84062.0,0.2629288]
[1742497158155,0.14161133,84064.0,84063.0,0.1190273]
[1742497158357,0.1190186,84070.0,84067.0,0.0595108]
[1742497158560,0.29607075,84069.0,84068.0,0.1662203]
[1742497158755,0.17705185,84069.0,84068.0,0.4562203]
[1742497159554,0.21036138,84074.0,84073.0,0.1190132]
[1742497159745,0.1190066,84078.0,84077.0,0.1190075]
[1742497160254,0.1190066,84078.0,84077.0,0.1662075]
[1742497161355,0.1959066,84078.0,84077.0,0.1672075]
[1742497161544,0.20517103,84078.0,84077.0,0.1672075]